Cogmind - Beta 14 @@@ ROGUE MODE // 2024.08.07 @ 18:52:39 Player: Nilson Result: Core destroyed Performance ------------- Evolutions (2) 1000 Regions Visited (5) 1000 Robots Destroyed (34) 170 Value Destroyed (1050) 1050 Prototype IDs (11) 220 Alien Tech Used (0) 0 Bonus (0) 0 TOTAL SCORE: 3440 Bonus ------- None Cogmind --------- Core Integrity 0/550 Matter 272/300 Energy 112/180 System Corruption 1% Temperature Critical (590) Movement Core (1700) Ox33 Location -8/Storage Parts ------- > --- POWER (1) -------- Meta Core > --- PROPULSION (3) --- (None) > --- UTILITY (4) ------ Improved Heat Sink Huge Storage Unit Improved Medium Armor Plating > --- WEAPON (3) ------- Heavy Particle Cannon > --- INVENTORY (25) --- Ion Engine Ion Engine Light Nuclear Core Improved Heat Sink Small Matter Pod (50) Subdweller Optics Subdweller Optics Propulsion Shielding Improved Medium Armor Plating Improved Medium Armor Plating Makeshift Hacking Suite Sensor Drone Bay Subdweller Shrapnel Launcher Mining Laser Peak State ------------ > --- POWER ------------ Meta Core > --- PROPULSION ------- Wheel Subdweller Monowheel Subdweller Monowheel Subdweller Monowheel > --- UTILITY ---------- Improved Heat Sink Huge Storage Unit Sensor Array Seismic Detector Improved Medium Armor Plating > --- WEAPON ----------- Lightning Gun Lightning Gun Lightning Gun > --- INVENTORY -------- Ion Engine Ion Engine Light Nuclear Core Improved Heat Sink Small Matter Pod Subdweller Optics Subdweller Optics ECM Suite Propulsion Shielding Improved Medium Armor Plating Improved Medium Armor Plating Improved Medium Armor Plating Makeshift Hacking Suite Sensor Drone Bay Lightning Gun Heavy Particle Cannon Heavy Particle Cannon Subdweller Shrapnel Launcher Mining Laser [Rating: 47] Favorites ----------- Power Ion Engine Engine Ion Engine Power Core Meta Core Propulsion Wheel Wheel Wheel Utility Huge Storage Unit Device Seismic Detector Storage Huge Storage Unit Processor Signal Interpreter Protection Light Armor Plating Weapon Assault Rifle Energy Gun Lightning Gun Energy Cannon Heavy Particle Cannon Ballistic Gun Assault Rifle Launcher Rocket Launcher Special Weapon Mining Laser Build | -11 -10 -10 -10 -8 -8 ------- Run | Yrd Mat Min Sub Mat Sto Slots Evolved 4 | . . . . 4 . Power . | . . . . . . Propulsion 1 | . . . . 1 . Utility 2 | . . . . 2 . Weapon 1 | . . . . 1 . Parts Attached 45 | 6 2 7 14 13 3 Power 3 | 1 . 1 1 . . Engine 2 | 1 . 1 . . . Core 1 | . . . 1 . . Reactor . | . . . . . . Propulsion 7 | 2 . . 3 2 . Treads . | . . . . . . Leg . | . . . . . . Wheel 7 | 2 . . 3 2 . Hover . | . . . . . . Flight . | . . . . . . Utility 10 | 1 1 1 2 4 1 Device 3 | . . . 1 2 . Storage 2 | 1 . 1 . . . Processor 1 | . . . 1 . . Hackware . | . . . . . . Protection 4 | . 1 . . 2 1 Artifact . | . . . . . . Weapon 25 | 2 1 5 8 7 2 Energy Gun 4 | . . . . 4 . Energy Cannon 5 | . . . . 3 2 Ballistic Gun 10 | 2 1 3 4 . . Ballistic Cannon . | . . . . . . Launcher 1 | . . . 1 . . Special Weapon 5 | . . 2 3 . . Impact Weapon . | . . . . . . Slashing Weapon . | . . . . . . Piercing Weapon . | . . . . . . Special Melee Weapon . | . . . . . . Unidentified Prototypes . | . . . . . . Parts Lost 12 | . . . 2 8 2 Power . | . . . . . . Propulsion 3 | . . . . 3 . Utility 4 | . . . 1 2 1 Weapon 5 | . . . 1 3 1 Highest Loss Streak 7 | . . . 1 7 2 To Critical Strikes . | . . . . . . Average Slot Usage (%) 96 | . 92 100 98 94 69 Engine 7 | . 14 14 4 . . Core 4 | . . . 6 7 9 Wheel 26 | . 28 28 28 29 1 Device 6 | . . . 6 19 16 Storage 11 | . 14 14 11 7 9 Processor 5 | . . . 10 3 . Protection 6 | . 6 14 1 6 9 Energy Gun 1 | . . . . 16 . Energy Cannon 1 | . . . . . 24 Ballistic Gun 17 | . 28 26 16 . . Launcher 4 | . . . 10 1 . Special Weapon 1 | . . 1 1 . . Peak Build Rating 47 | 6 7 9 29 47 36 Average Rating 19 | 4 6 8 22 42 33 On Entrance 12 | . 6 7 9 28 27 Naked Turns . | . . . . . . Heaviest Build 113 | 13 17 92 95 110 113 Greatest Support 70 | 20 20 20 60 70 20 Greatest Overweight (x) 37 | . . 4 4 5 37 Average Overweight (x) 2 | . . 3 1 1 11 Largest Inventory Capacity 25 | 8 8 25 25 25 25 Average Capacity 23 | 7 8 23 25 25 25 Most Carried 20 | 3 8 13 18 20 17 Average Carried 12 | 1 5 11 14 17 14 Final Capacity 25 | 8 8 25 25 25 25 Final Carried 18 | 3 8 13 18 18 14 Class Distribution -------------------- 62% | Mutant 25% | Gunner 10% | Tank Dominant Class ---------------- Mutant | -10/Materials Mutant | -10/Mines Gunner | -10/Subcaves Tank | -8/Materials Tank | -8/Storage Resources | -11 -10 -10 -10 -8 -8 ----------- Run | Yrd Mat Min Sub Mat Sto Matter Collected 1018 | 254 6 264 362 132 . Remotely . | . . . . . . Salvage Created 1188 | . . 176 333 455 224 Parts 68 | . . 14 16 24 14 Haulers Intercepted 1 | . . . . . 1 Recyclers Shooed . | . . . . . . Parts Field Recycled . | . . . . . . Retrieved Matter . | . . . . . . Parts Self-Destructed 7 | . . . 7 . . Prevented . | . . . . . . Kills | -11 -10 -10 -10 -8 -8 ------- Run | Yrd Mat Min Sub Mat Sto Combat Hostiles Destroyed 30 | . . 8 10 9 3 Guns 18 | . . 8 2 8 . Cannons 3 | . . . . . 3 AOE 8 | . . . 8 . . Classes Destroyed 8 | . . 2 2 2 2 Worker 1 | . . . . 1 . Builder 1 | . . . . . 1 Hauler 1 | . . . . . 1 Watcher 1 | . . . . 1 . Swarmer 9 | . . 6 . 3 . Grunt 10 | . . 2 . 5 3 Sentry 2 | . . . 1 1 . Subdweller 9 | . . . 9 . . Best Kill Streak 9 | . . 3 2 9 4 Combat Bots Only 8 | . . 3 2 8 2 Max Kills in Single Turn 2 | . . 1 1 2 2 Gunslinging 1 | . . . . 1 . Exploded 1 | . . . 1 . . Melee . | . . . . . . Uniques/NPCs Destroyed . | . . . . . . Combat | -11 -10 -10 -10 -8 -8 -------- Run | Yrd Mat Min Sub Mat Sto Hostile Shots Fired 192 | . . 34 15 118 25 Missed 52 | . . 7 4 34 7 Damage Taken 2313 | . . 243 355 1113 602 Core 710 | . . 56 93 175 386 Absorbed by Shields . | . . . . . . Core Remaining (%) 70 | 100 . . 40 . . Volleys Fired 112 | . 1 31 42 26 12 Largest 3 | . 2 2 3 3 3 Hottest 225 | . 40 100 100 185 225 Shots Fired 208 | . 2 51 66 65 24 Gun 126 | . 2 40 24 60 . Cannon 27 | . . . . 3 24 Launcher 17 | . . . 15 2 . Special 38 | . . 11 27 . . Kinetic 66 | . 2 40 24 . . Thermal 65 | . . 11 27 3 24 Explosive 17 | . . . 15 2 . Electromagnetic 60 | . . . . 60 . Robot Hit Streak 9 | . . 3 9 5 6 Robot Miss Streak 4 | . 2 3 1 4 2 Penetration Max . | . . . . . . Secondary Targets 6 | . . 2 . 4 . Max Gunslinging Chain 1 | . . 1 . 1 . Shots Hit Robots 86 | . . 20 25 28 13 Core Hits 50 | . . 10 16 16 8 Critical Kills . | . . . . . . Critical Parts Destroyed . | . . . . . . Critical Strikes 2 | . . . . 2 . Corrupt 2 | . . . . 2 . Melee Attacks . | . . . . . . Impact . | . . . . . . Slashing . | . . . . . . Piercing . | . . . . . . Sneak Attacks . | . . . . . . Combat Hostiles . | . . . . . . Follow-up Attacks . | . . . . . . Damage Inflicted 2123 | . . 230 750 743 400 Guns 1137 | . . 230 198 709 . Cannons 400 | . . . . . 400 Explosions 586 | . . . 552 34 . Melee . | . . . . . . Ramming . | . . . . . . Kinetic 428 | . . 230 198 . . Thermal 400 | . . . . . 400 Explosive 586 | . . . 552 34 . Electromagnetic 709 | . . . . 709 . Impact . | . . . . . . Slashing . | . . . . . . Piercing . | . . . . . . Highest Corruption 1 | . . . . 1 1 Average Corruption 1 | . . . . 1 1 Corruption Purged . | . . . . . . Corruption Blocked . | . . . . . . Effects 3 | . . . . 1 2 Message Errors 1 | . . . . . 1 Matter Fused 1 | . . . . 1 . Parts Rejected 1 | . . . . . 1 Overload Shots . | . . . . . . Overflow Damage . | . . . . . . Projectiles . | . . . . . . Explosions . | . . . . . . Melee . | . . . . . . Knockbacks . | . . . . . . Impact . | . . . . . . Kinetic . | . . . . . . Secondary . | . . . . . . Self-Inflicted Damage 29 | . . . 29 . . Shots 2 | . . . 2 . . Rammed . | . . . . . . Targets Rammed . | . . . . . . Kicked . | . . . . . . Crushed . | . . . . . . Highest Temperature 677 | . . 220 . 376 677 Average Temperature 168 | . . 76 . 152 409 Received Heat Transfer 549 | . . 63 36 270 180 Effects 21 | . . . . 2 19 Shutdowns 4 | . . . . 2 2 Interference 2 | . . . . . 2 Short Circuit 1 | . . . . . 1 Damage (major) 10 | . . . . . 10 Damage (core) 4 | . . . . . 4 Siege Activations . | . . . . . . Robots Corrupted 2 | . . . . 2 . Combat Hostiles 1 | . . . . 1 . Parts Fried 2 | . . . . 2 . Impact Corruptions . | . . . . . . Robots Melted . | . . . . . . Combat Hostiles . | . . . . . . Parts Melted 1 | . . . . . 1 Heat Transferred 592 | . . . . . 592 Parts Sabotaged . | . . . . . . Parts Stolen . | . . . . . . Parts Stripped . | . . . . . . Power Chain Reactions . | . . . . . . Alert | -11 -10 -10 -10 -8 -8 ------- Run | Yrd Mat Min Sub Mat Sto Peak Influence 365 | . . 136 . 365 197 Initial 125 | . . . . . 125 Average 87 | . . 62 . 211 137 Maximum Alert Level 1 | . . . . 1 . Low Security (%) 88 | 100 100 100 . 38 100 Level 1 11 | . . . . 61 . Level 2 . | . . . . . . Level 3 . | . . . . . . Level 4 . | . . . . . . Level 5 . | . . . . . . High Security . | . . . . . . Max Security . | . . . . . . Squads Dispatched 7 | . 1 . . 5 1 Investigation . | . . . . . . Extermination . | . . . . . . Reinforcement 6 | . 1 . . 5 . Assault . | . . . . . . Garrison 1 | . . . . . 1 Intercept . | . . . . . . Searches Triggered . | . . . . . . Construction Impeded 1 | . . . . 1 . Haulers Reinforced . | . . . . . . Active Scanning Responses . | . . . . . . Cargo Convoy Interrupts . | . . . . . . Stealth | -11 -10 -10 -10 -8 -8 --------- Run | Yrd Mat Min Sub Mat Sto Distress Signals 5 | . . 1 . 3 1 Communications Jammed . | . . . . . . Distress Signals . | . . . . . . Times Spotted 49 | . 2 8 9 27 3 Peak Tracking Total 12 | . 1 3 2 12 3 Tactical Retreats 1 | . . . . 1 . Traps | -11 -10 -10 -10 -8 -8 ------- Run | Yrd Mat Min Sub Mat Sto Traps Triggered 2 | . . . 2 . . Indirectly . | . . . . . . Trap Hack Attempts . | . . . . . . Triggered . | . . . . . . Disarmed . | . . . . . . Reprogrammed . | . . . . . . Reused . | . . . . . . Traps Extracted . | . . . . . . Installed . | . . . . . . Triggered . | . . . . . . Machines | -11 -10 -10 -10 -8 -8 ---------- Run | Yrd Mat Min Sub Mat Sto Machines Disabled 3 | . . . 1 1 1 Max in Single Turn 1 | . . . 1 1 1 Machines Repaired . | . . . . . . Machines Dismantled . | . . . . . . Machines Sabotaged . | . . . . . . Overloaded Fab Kills . | . . . . . . Hacking | -11 -10 -10 -10 -8 -8 --------- Run | Yrd Mat Min Sub Mat Sto Machines Accessed 7 | . 2 1 1 2 1 Terminals 3 | . 1 . . 1 1 Fabricators . | . . . . . . Repair Stations 1 | . . . . 1 . Recycling Units 1 | . 1 . . . . Scanalyzers . | . . . . . . Garrison Access . | . . . . . . Total Hacks 27 | . 7 1 5 9 5 Successful 21 | . 4 1 5 7 4 Failed 6 | . 3 . . 2 1 Catastrophic . | . . . . . . Database Lockouts . | . . . . . . Manual 2 | . 2 . . . . Terminals 13 | . 4 . . 4 5 Fabricators . | . . . . . . Repair Stations 5 | . . . . 5 . Recycling Units 3 | . 3 . . . . Scanalyzers . | . . . . . . Garrison Access . | . . . . . . Terminal Hacks 14 | . 1 1 5 3 4 Record 10 | . 1 . 4 1 4 Open Door 1 | . . 1 . . . Alert Level 1 | . . . . 1 . Dispatch Records 1 | . . . . 1 . Derelict Proto ID Bank 1 | . . . 1 . . Fabricator Hacks . | . . . . . . Repair Station Hacks 4 | . . . . 4 . Scan Component 2 | . . . . 2 . Repair 2 | . . . . 2 . Recycling Unit Hacks 3 | . 3 . . . . Recycle Component 1 | . 1 . . . . Process 2 | . 2 . . . . Scanalyzer . | . . . . . . Garrison Access Hacks . | . . . . . . Unauthorized Hacks . | . . . . . . Terminals . | . . . . . . Fabricators . | . . . . . . Repair Stations . | . . . . . . Recycling Units . | . . . . . . Scanalyzers . | . . . . . . Garrison Access . | . . . . . . Data Cores Recovered . | . . . . . . Used . | . . . . . . Hacking Detections 4 | . 2 . . 2 . Full Trace Events 2 | . 1 . . 1 . Feedback Events 1 | . . . . 1 . Corruption 1 | . . . . 1 . Feedback Blocked . | . . . . . . Robot Schematics Acquired . | . . . . . . Robots Built . | . . . . . . Authchips . | . . . . . . Time . | . . . . . . Total Robot Build Rating . | . . . . . . Part Schematics Acquired . | . . . . . . Parts Built . | . . . . . . Authchips . | . . . . . . Time . | . . . . . . Total Part Build Rating . | . . . . . . Parts Repaired 1 | . . . . 1 . Time 88 | . . . . 88 . Parts Recycled 1 | . 1 . . . . Recycled Matter 122 | . 122 . . . . Retrieved Matter . | . . . . . . Retrieved Components . | . . . . . . Parts Scanalyzed . | . . . . . . Part Schematics Acquired . | . . . . . . Parts Damaged . | . . . . . . Bothacking | -11 -10 -10 -10 -8 -8 ------------ Run | Yrd Mat Min Sub Mat Sto Used RIF Installer . | . . . . . . Robots Hacked . | . . . . . . Non-combat . | . . . . . . Combat . | . . . . . . Robot Hacks Applied . | . . . . . . Relay Couplers Released . | . . . . . . Fabnet Peak Effective % . | . . . . . . Robots Rewired . | . . . . . . Allies Hacked . | . . . . . . Hacks Repelled . | . . . . . . Allies | -11 -10 -10 -10 -8 -8 -------- Run | Yrd Mat Min Sub Mat Sto Total Allies . | . . . . . . Largest Group . | . . . . . . Highest-Rated Group . | . . . . . . Highest-Rated Ally . | . . . . . . Total Orders . | . . . . . . Ally Attacks . | . . . . . . Total Damage . | . . . . . . Kills . | . . . . . . Allies Corrupted . | . . . . . . Allies Melted . | . . . . . . Intel | -11 -10 -10 -10 -8 -8 ------- Run | Yrd Mat Min Sub Mat Sto Robot Analysis Total . | . . . . . . Derelict Logs Recovered 2 | . . 2 . . . Drone Launches . | . . . . . . Drone Recoveries . | . . . . . . Exploration | -11 -10 -10 -10 -8 -8 ------------- Run | Yrd Mat Min Sub Mat Sto Turns Passed 2840 | 64 208 860 1252 308 148 Spaces Moved 1882 | 58 236 536 869 159 24 Core 6 | 1 . . . . 5 Treads . | . . . . . . Legs . | . . . . . . Wheels 1876 | 57 236 536 869 159 19 Hover . | . . . . . . Flight . | . . . . . . Fastest Speed 50 | 50 80 80 111 113 160 Average Speed 123 | 79 80 135 121 114 514 Slowest Speed 1900 | 80 80 140 140 160 1900 Overloaded Moves . | . . . . . . Propulsion Burnouts . | . . . . . . Robots Hopped . | . . . . . . Cave-ins Triggered . | . . . . . . Exploration Rate (%) 35 | 3 33 85 64 17 9 Regions Visited 5 Branch Regions 3 Pre-discovered Areas . | . . . . . . Known Exits Taken 2 | . . . 1 1 . Unknown Exits Taken 3 | 1 1 1 . . . Scrap Searched 9 | . . 2 7 . . Spaces Dug 13 | . . 4 9 . . Terrain Destroyed 145 | . . 4 121 15 5 Melee . | . . . . . . Projectile 12 | . . 4 . 3 5 AOE 133 | . . . 121 12 . Terrain Rammed . | . . . . . . Walls Destroyed . | . . . . . . Machines Disabled . | . . . . . . Actions | -11 -10 -10 -10 -8 -8 --------- Run | Yrd Mat Min Sub Mat Sto Total 2145 | 72 253 599 943 234 44 Wait 47 | 6 4 9 6 19 3 Move 1877 | 57 235 535 868 158 24 Hop . | . . . . . . Pick Up 44 | 3 8 12 10 11 . Fast Attach 13 | 6 2 1 1 3 . Attach 17 | . . . 4 10 3 Detach . | . . . . . . Swap 15 | . . 6 9 . . Drop 20 | . 3 5 3 7 2 Fire 112 | . 1 31 42 26 12 Melee . | . . . . . . Ram . | . . . . . . Kick . | . . . . . . Crush . | . . . . . . Escape Stasis . | . . . . . . Rewire . | . . . . . . Trap . | . . . . . . Miscellaneous . | . . . . . . Route ------- -11/Scrapyard -10/Materials -10/Mines (discovered 3 exits: [*Mat x2] / *Sub) -10/Subcaves (discovered 2 exits: *Mat x2) -8/Materials (discovered 2 exits: *Sto x2) -8/Storage History --------- Turn | Location | Event 38 | -11/Scrapyard | Discovered new exit (range 15) 65 | -11/Scrapyard | Entered Materials 177 | -10/Materials | Discovered new exit (range 7) 273 | -10/Materials | Entered Mines 313 | -10/Mines | Build established: Mutant 321 | -10/Mines | Received a Rocket Launcher from a helpful Derelict 389 | -10/Mines | Discovered new exit (range 3) 451 | -10/Mines | Found the Drone Emporium 457 | -10/Mines | Found Prototype Device 503 | -10/Mines | Discovered new exit (range 15) 511 | -10/Mines | Learned location of 1 exit from Materials 642 | -10/Mines | Assembled infested the area 1035 | -10/Mines | Discovered new exit (range 4) 1133 | -10/Mines | Entered Subcaves 1159 | -10/Subcaves | Discovered new exit (range 14) 1415 | -10/Subcaves | Shifting Twisted Machinery released Riot Gun 1420 | -10/Subcaves | Discovered new exit (range 12) 1454 | -10/Subcaves | Identified exit to Materials 1512 | -10/Subcaves | Visited 4L-MR0's lab 1531 | -10/Subcaves | Found Meta Core 1533 | -10/Subcaves | Attached Meta Core, gained temporary slots: Propulsion, Utility, Weapon 1606 | -10/Subcaves | Core integrity fell below 50% 1851 | -10/Subcaves | Shifting Twisted Machinery released Sub. Optics 1854 | -10/Subcaves | Build established: Gunner 1856 | -10/Subcaves | Shifting Twisted Machinery released Flamer 1954 | -10/Subcaves | Ambushed by Subdweller buried in earth 2326 | -10/Subcaves | Shifting Twisted Machinery released Scrap Shield 2354 | -10/Subcaves | Shifting Twisted Machinery released Sub. Monowheel 2385 | -10/Subcaves | Entered Materials 2385 | -8/Materials | Evolved 4 slots: Propulsion x1, Utility x2, Weapon x1 2386 | -8/Materials | Identified exit to Storage 2534 | -8/Materials | Destroyed 8 combat bots 2676 | -8/Materials | Repaired Lightning Gun 2693 | -8/Materials | Entered Storage 2719 | -8/Storage | Lost 7 parts (3n2u2w) 2829 | -8/Storage | Garrison activated, responded to threat 2835 | -8/Storage | Core integrity fell below 50% 2838 | -8/Storage | Core integrity fell below 20% 2842 | -8/Storage | Core destroyed Last Messages --------------- Imp. Heat Sink temporarily disabled. K-01 Serf collects debris. U-05 Engineer builds a Wall. Power failure, Meta Core shutdown. K-01 Serf collects debris. U-05 Engineer destroyed. U-05 Engineer builds a Door. Overheating: Core damaged (-110). Overheating: Imp. Medium Armor Plating damaged (-10). Overheating: Huge Storage Unit damaged (-49). Overheating: Hvy. Particle Cannon damaged (-35). Overheating: Core damaged (-71). K-01 Serf collects debris. G-47 Trooper destroyed. Overheating: Core damaged (-82). U-05 Engineer builds a Wall. Hvy. Particle Cannon broken. Overheating: Short circuit. K-01 Serf collects debris. Overheating: Core damaged (-66). Map ----- +----------------------------------------------------+ | | | ?????????????????????????????????????????? | | ?????????????????????????????????????????? | | ?????????????????????????????????????????? | | ?????????????????????????????????????????? | | ?????????????????????????????????????????? | | ??????????????????????????????????#####??? | | ??????????????????????????????????# #??? | | ??????????????????????????????????# ! #??? | | ??????????????????????????????????# #??? | | ??????????????????????????????????# #??? | | ??????????????????????????????????# #??? | | ??????????????????????????????????+ #??? | | ??????????????????????????????????# #??? | | ??????????????????????????????????# #??? | | ??????????????????????????????????# #??? | | ?????????????????????????????????## ##?? | | ???????????????????????########### #?? | | ???????????????????????# #?? | | ???????????????????????# T #?? | | ???????????????????????# = #?? | | ???????????????????????# ####### #?? | | ???????????????????????# #?????#######?? | | ???????????????????????# #???? #?? | | ???????????????????????# ]# #?? | | ???????????????????????# @ ; #?? | | ???????????????????????# + #?? | | ???????????????????????# =*# #?? | | ??????????????????????? =[%#? ? #?? | | ?????????????????????? [%u/?? ????? | | ?????????????????????" m #???#+#####???? | | ????????????????????"" k ?????????????? | | ???????????????????""" !* ?????????????? | | ??????????????????? [%=?????????????? | | ???????????????????? =%=[[????????????? | | ???????????????????#######;#+????????????? | | ??????????????????????##?? ?????????????? | | ??????????????????????????""?????????????? | | ?????????????????????????????????????????? | | ?????????????????????????????????????????? | | ?????????????????????????????????????????? | | ?????????????????????????????????????????? | | ?????????????????????????????????????????? | | ?????????????????????????????????????????? | | ?????????????????????????????????????????? | | ?????????????????????????????????????????? | | ?????????????????????????????????????????? | | ?????????????????????????????????????????? | | ?????????????????????????????????????????? | | ?????????????????????????????????????????? | +----------------------------------------------------+ Best States ------------- Heat Dissipation 45 Energy Generation 17 Energy Capacity 250 Matter Stores 300 Matter Capacity 300 Sight Range 16 Robot Scan Range 14 Terrain Scan Density 10 Armor Coverage 225 Evasion (%) 44 Item Schematics ----------------- None Robot Schematics ------------------ None Fabricated ------------ Nothing Alien Tech Used ----------------- None Achievements -------------- Librarian Loot Pinata Part-time Mechanic Power Corrupts Troublemaker Challenges ------------ None Game ------ Seed TrapAluminumMapper Manual? 0 Play Time 01:13:17 Cumulative 3.3 hours Start 2024.08.07 @ 07:36:26 End 2024.08.07 @ 18:52:39 Sessions 5 Manual Loads 0 Difficulty Rogue Special Mode None Game No. 5 Rogue 5 Adventurer 0 Explorer 0 Win Type - Total 0 Types 0/0/0/0/0/0/0/0/0 Lore% 2 Gallery% 5 Achievement% 5 Wizard Run 0 Options --------- Layout 0 ASCII 0 Keyboard 0 Movement Mouse Keybinds 0 Fullscreen 1 Font 24/Smallcaps Map View 56x25 Zoom Use 88% Tactical HUD 0 Map Filters NONE Filters NONE Steam 1 RUN: 37b4528d-2a89-4327-91f1-6e452c26c7bf